Cogmind - Beta 11.1 @@@ ROGUE MODE // 2022.04.25 @ 16:28:55 Player: QQQQ Result: Self-destructed Performance ------------- Evolutions (7) 3500 Regions Visited (17) 3400 Robots Destroyed (34) 170 Value Destroyed (1072) 1072 Prototype IDs (40) 800 Alien Tech Used (0) 0 Bonus (1300) 1300 TOTAL SCORE: 10242 Bonus ------- Aligned with FarCom 300 Met Warlord at Base 500 MAIN.C Attacked Warlord 500 Cogmind --------- Core Integrity 1232/1300 Matter 290/300 Energy 160/160 System Corruption 0% Temperature Cool (0) Movement Flying (285) Ox3 Location -3/Research Parts ------- > --- POWER (2) -------- Light Fission Core > --- PROPULSION (6) --- Field Propulsion Drive > --- UTILITY (11) ----- Medium Storage Unit Enhanced Optical Array Advanced Signal Interpreter Makeshift Hacking Suite Makeshift Hacking Suite Makeshift Hacking Suite Improved Hacking Suite Advanced Hacking Suite > --- WEAPON (2) ------- RU-N14's Throwing Claymores v3 > --- INVENTORY (10) --- Light Antimatter Reactor Gravity Neutralizer Improved Reaction Control System Advanced System Restoration Module Chronowheel Vortex Catalyst Activator (8) Makeshift Axe Peak State ------------ > --- POWER ------------ Light Fission Core Light Fission Core > --- PROPULSION ------- Improved VTOL Module Improved VTOL Module Field Propulsion Drive Field Propulsion Drive Field Propulsion Drive > --- UTILITY ---------- Medium Storage Unit Advanced Weight Redist. System Enhanced Optical Array Advanced Sensor Array Advanced Signal Interpreter Improved Reaction Control System Makeshift Hacking Suite Makeshift Hacking Suite Improved Hacking Suite Advanced Hacking Suite > --- WEAPON ----------- Vortex Catalyst Activator > --- INVENTORY -------- Light Antimatter Reactor Improved VTOL Module Gravity Neutralizer Advanced ECM Suite Makeshift Hacking Suite Advanced System Restoration Module Minesniffer Drone Bay Chronowheel [Rating: 102] Favorites ----------- Power Light Fission Core Engine Light Deuterium Engine Power Core Light Fission Core Propulsion Improved VTOL Module Wheel Compact Wheel Flight Unit Improved VTOL Module Utility Medium Storage Unit Device Advanced Weight Redist. System Storage Medium Storage Unit Processor 0b10 Alert Chip Hackware Improved Hacking Suite Weapon Flail Energy Gun Medium Laser Ballistic Gun KE Penetrator Launcher Tiamat Missile Launcher Special Weapon RU-N14's Throwing Claymores v3 Impact Weapon Flail Slashing Weapon Makeshift Axe Build | -11 -10 -10 -9 -9 -9 -8 -8 -7 -6 -6 -5 -4 -4 -4 -4 -3 -3 ------- Run | Scr Mat Min Mat Min Exi Min Mat Fac Fac Ext Fac Fac Upp Upp War Pro Res Slots Evolved 14 | . . . 2 . . . 2 2 2 . 2 2 . . . . 2 Power 1 | . . . . . . . . . . . 1 . . . . . . Propulsion 4 | . . . 2 . . . . . . . 1 . . . . . 1 Utility 9 | . . . . . . . 2 2 2 . . 2 . . . . 1 Weapon . | . . . . . . . . . . . . . . . . . . Parts Attached 87 | 7 3 1 15 1 2 . 4 8 6 2 21 1 2 . 10 2 2 Power 10 | 1 . . 3 . . . 1 . 2 . 3 . . . . . . Engine 7 | 1 . . 3 . . . 1 . 2 . . . . . . . . Core 3 | . . . . . . . . . . . 3 . . . . . . Reactor . | . . . . . . . . . . . . . . . . . . Propulsion 24 | 2 . 1 8 . . . . 5 . 1 7 . . . . . . Treads . | . . . . . . . . . . . . . . . . . . Leg . | . . . . . . . . . . . . . . . . . . Wheel 3 | 2 . 1 . . . . . . . . . . . . . . . Hover . | . . . . . . . . . . . . . . . . . . Flight 21 | . . . 8 . . . . 5 . 1 7 . . . . . . Utility 26 | 2 3 . . . . . 3 2 4 1 6 1 . . 3 1 . Device 12 | 1 1 . . . . . 1 . 2 1 4 1 . . 1 . . Storage 2 | 1 1 . . . . . . . . . . . . . . . . Processor 5 | . 1 . . . . . 1 1 1 . 1 . . . . . . Hackware 7 | . . . . . . . 1 1 1 . 1 . . . 2 1 . Protection . | . . . . . . . . . . . . . . . . . . Artifact . | . . . . . . . . . . . . . . . . . . Weapon 27 | 2 . . 4 1 2 . . 1 . . 5 . 2 . 7 1 2 Energy Gun 3 | 1 . . . . . . . . . . . . . . 2 . . Energy Cannon . | . . . . . . . . . . . . . . . . . . Ballistic Gun 11 | 1 . . 3 . 2 . . . . . 3 . 1 . 1 . . Ballistic Cannon . | . . . . . . . . . . . . . . . . . . Launcher 6 | . . . . . . . . 1 . . 2 . 1 . 1 1 . Special Weapon 3 | . . . . . . . . . . . . . . . 1 . 2 Impact Weapon 2 | . . . 1 1 . . . . . . . . . . . . . Slashing Weapon 2 | . . . . . . . . . . . . . . . 2 . . Piercing Weapon . | . . . . . . . . . . . . . . . . . . Special Melee Weapon . | . . . . . . . . . . . . . . . . . . Unidentified Prototypes 12 | . . . 3 . 1 . . 1 . . 2 . . . 5 . . Parts Lost 18 | . . . . . . . . . 1 4 5 . . 1 1 4 2 Power 3 | . . . . . . . . . . 1 1 . . . . 1 . Propulsion 8 | . . . . . . . . . . 2 2 . . . . 2 2 Utility 6 | . . . . . . . . . 1 1 1 . . 1 1 1 . Weapon 1 | . . . . . . . . . . . 1 . . . . . . Highest Loss Streak 4 | . . . . . . . . . 1 4 3 . . 1 1 3 2 To Critical Strikes . | . . . . . . . . . . . . . . . . . . Average Slot Usage (%) 93 | . 100 100 100 100 100 100 97 84 93 93 93 92 94 89 95 75 55 Engine 5 | . 14 14 11 11 11 11 9 7 5 6 . . . . . . . Core 4 | . . . . . . . . . . . 10 10 10 10 10 7 4 Wheel 3 | . 28 28 . . . . . . . . . . . . . . . Flight 25 | . . . 43 44 44 44 36 26 26 26 25 26 26 26 26 18 9 Device 6 | . 11 . . . . . 1 7 7 6 7 13 15 15 14 5 . Storage 7 | . 14 14 11 11 11 11 9 7 6 6 5 5 5 5 5 5 4 Processor 14 | . 2 14 11 11 11 11 16 14 19 20 16 15 15 10 10 10 9 Hackware 9 | . . . . . . . 8 10 17 13 12 10 10 10 17 22 23 Energy Gun 2 | . 14 14 3 . . . . . 2 6 1 . . . . . . Ballistic Gun 5 | . 14 14 18 15 11 11 8 . . . 2 5 4 5 2 . . Impact Weapon 4 | . . . . 6 11 11 9 7 6 6 5 5 5 5 1 . . Naked Turns . | . . . . . . . . . . . . . . . . . . Heaviest Build 46 | 14 19 18 19 19 18 18 20 24 20 20 34 34 34 34 40 46 27 Greatest Support 50 | 26 32 32 20 20 20 20 20 50 20 25 40 40 40 40 40 40 17 Greatest Overweight (x) 2 | . . . . . . . . 1 . . . . . . . 1 2 Average Overweight (x) . | . . . . . . . . . . . . . . . . . . Largest Inventory Capacity 10 | 8 10 10 10 10 10 10 10 10 10 10 10 10 10 10 10 10 10 Average Capacity 9 | 7 8 10 10 10 10 10 10 10 10 10 10 10 10 10 10 10 10 Most Carried 10 | 7 10 10 10 10 10 10 10 10 10 10 10 9 9 9 10 10 10 Average Carried 9 | 5 7 10 9 10 9 10 9 9 9 9 8 8 9 9 9 9 9 Final Capacity 10 | 8 10 10 10 10 10 10 10 10 10 10 10 10 10 10 10 10 10 Final Carried 10 | 7 10 10 10 10 10 10 10 7 10 8 9 9 9 9 10 10 8 Class Distribution -------------------- 33% | Hacker-Scout 25% | Sprinter 24% | Hacker-Sprinter 15% | Mutant Dominant Class ---------------- Mutant | -10/Materials Mutant | -10/Mines Sprinter | -9/Materials Sprinter | -9/Mines Sprinter | -9/Exiles Sprinter | -8/Mines Sprinter | -8/Materials Sprinter | -7/Factory Hacker-Scout | -6/Factory Hacker-Scout | -6/Extension Hacker-Sprinter | -5/Factory Hacker-Scout | -4/Factory Hacker-Scout | -4/Upper Caves Hacker-Scout | -4/Upper Caves Hacker-Scout | -4/Warlord Hacker-Sprinter | -3/Proximity Caves Hacker-Mutant | -3/Research Resources | -11 -10 -10 -9 -9 -9 -8 -8 -7 -6 -6 -5 -4 -4 -4 -4 -3 -3 ----------- Run | Scr Mat Min Mat Min Exi Min Mat Fac Fac Ext Fac Fac Upp Upp War Pro Res Matter Collected 1280 | 250 27 58 12 . . . 69 218 . . 248 . 103 . 285 10 . Remotely . | . . . . . . . . . . . . . . . . . . Salvage Created 593 | 15 90 72 37 . . . 69 . . . 129 . 31 . . 124 26 Parts 41 | 4 7 6 7 . . . 1 . . . 10 . 2 . . 4 . Haulers Intercepted 1 | . 1 . . . . . . . . . . . . . . . . Recyclers Shooed . | . . . . . . . . . . . . . . . . . . Parts Field Recycled . | . . . . . . . . . . . . . . . . . . Retrieved Matter . | . . . . . . . . . . . . . . . . . . Parts Self-Destructed 59 | . . . . . . . . . . . . . 3 . 50 6 . Prevented . | . . . . . . . . . . . . . . . . . . Kills | -11 -10 -10 -9 -9 -9 -8 -8 -7 -6 -6 -5 -4 -4 -4 -4 -3 -3 ------- Run | Scr Mat Min Mat Min Exi Min Mat Fac Fac Ext Fac Fac Upp Upp War Pro Res Combat Hostiles Destroyed 27 | . 2 4 3 . . . . . . . 6 . 4 . . 3 5 Guns 11 | . 2 4 3 . . . . . . . 1 . 1 . . . . Cannons 1 | . . . . . . . . . . . . . . . . . 1 AOE 15 | . . . . . . . . . . . 5 . 3 . . 3 4 Classes Destroyed 10 | 1 2 . . . . . 1 . . . 3 . . . . 2 1 Worker 1 | . . . . . . . . . . . 1 . . . . . . Tunneler 3 | 1 . . . . . . 1 . . . 1 . . . . . . Hauler 1 | . 1 . . . . . . . . . . . . . . . . Recycler 1 | . . . . . . . 1 . . . . . . . . . . Watcher 1 | . . . . . . . . . . . 1 . . . . . . Swarmer 17 | . 2 4 3 . . . . . . . 4 . 4 . . . . Grunt 6 | . . . . . . . . . . . . . . . . 2 4 Duelist 1 | . . . . . . . . . . . . . . . . 1 . Sentry 1 | . . . . . . . . . . . . . . . . . 1 Programmer 2 | . . . . . . . . . . . 2 . . . . . . Best Kill Streak 5 | 1 2 3 3 . . . 1 . . . 4 . 4 . . 3 5 Combat Bots Only 5 | . 2 3 3 . . . . . . . 4 . 4 . . 3 5 Max Kills in Single Turn 3 | 1 1 1 1 . . . 1 . . . 2 . 2 . . 3 2 Gunslinging . | . . . . . . . . . . . . . . . . . . Exploded 3 | . . . . . . . . . . . 2 . 2 . . 3 2 Melee . | . . . . . . . . . . . . . . . . . . Uniques/NPCs Destroyed . | . . . . . . . . . . . . . . . . . . Combat | -11 -10 -10 -9 -9 -9 -8 -8 -7 -6 -6 -5 -4 -4 -4 -4 -3 -3 -------- Run | Scr Mat Min Mat Min Exi Min Mat Fac Fac Ext Fac Fac Upp Upp War Pro Res Damage Taken 2007 | . 37 181 100 . . . 14 80 75 313 563 . 111 . 50 255 228 Core 407 | . 12 76 23 . . . . 18 . 78 89 . . . . 43 68 Absorbed by Shields . | . . . . . . . . . . . . . . . . . . Regen/Repaired (Parts) 34 | . . . . . . . . . 34 . . . . . . . . Core Remaining (%) 91 | 100 . 64 . . . 94 100 97 . 90 91 . . . . 96 . Volleys Fired 57 | 4 10 11 3 . . . . . . . 10 1 9 . . 1 8 Largest 2 | 2 2 2 2 . . . . . . . 1 1 1 . . 1 1 Hottest 70 | 70 70 70 50 . . . . . . . 46 33 46 . . 20 . Shots Fired 86 | 8 20 22 6 . . . . . . . 11 1 9 . . 1 8 Gun 70 | 8 20 22 6 . . . . . . . 8 1 5 . . . . Cannon . | . . . . . . . . . . . . . . . . . . Launcher 8 | . . . . . . . . . . . 3 . 4 . . 1 . Special 8 | . . . . . . . . . . . . . . . . . 8 Kinetic 45 | 4 10 11 6 . . . . . . . 8 1 5 . . . . Thermal 25 | 4 10 11 . . . . . . . . . . . . . . . Explosive 15 | . . . . . . . . . . . 3 . 4 . . . 8 Electromagnetic . | . . . . . . . . . . . . . . . . . . Entropic 1 | . . . . . . . . . . . . . . . . 1 . Robot Hit Streak 7 | 3 4 7 2 . . . . . . . 5 . 1 . . . 5 Robot Miss Streak 4 | 2 3 4 2 . . . . . . . 3 1 4 . . . . Penetration Max . | . . . . . . . . . . . . . . . . . . Secondary Targets 2 | . . 1 1 . . . . . . . . . . . . . . Max Gunslinging Chain 1 | . . 1 1 . . . . . . . . . . . . . . Shots Hit Robots 48 | 5 11 11 3 . . . 2 . . . 9 . 3 . . . 4 Core Hits 41 | 1 4 5 3 . . . . . . . 9 . 5 . . 4 10 Critical Kills . | . . . . . . . . . . . . . . . . . . Critical Parts Destroyed 1 | . . . . . . . 1 . . . . . . . . . . Critical Strikes 2 | . . . . . . . 1 . . . . . . . . . 1 Smash 1 | . . . . . . . 1 . . . . . . . . . . Sever 1 | . . . . . . . . . . . . . . . . . 1 Melee Attacks 44 | . . . 2 3 . . 12 2 2 . 13 1 8 1 . . . Impact 44 | . . . 2 3 . . 12 2 2 . 13 1 8 1 . . . Slashing . | . . . . . . . . . . . . . . . . . . Piercing . | . . . . . . . . . . . . . . . . . . Sneak Attacks 3 | . . . . . . . 2 . . . 1 . . . . . . Combat Hostiles . | . . . . . . . . . . . . . . . . . . Follow-up Attacks . | . . . . . . . . . . . . . . . . . . Damage Inflicted 3861 | 53 126 123 52 . . . 190 . . . 913 . 419 . . 490 1495 Guns 546 | 53 126 123 52 . . . . . . . 166 . 26 . . . . Cannons . | . . . . . . . . . . . . . . . . . . Explosions 2827 | . . . . . . . . . . . 650 . 393 . . 490 1294 Melee 287 | . . . . . . . 190 . . . 97 . . . . . . Ramming . | . . . . . . . . . . . . . . . . . . Kinetic 319 | 16 36 23 52 . . . . . . . 166 . 26 . . . . Thermal 227 | 37 90 100 . . . . . . . . . . . . . . . Explosive 2337 | . . . . . . . . . . . 650 . 393 . . . 1294 Electromagnetic . | . . . . . . . . . . . . . . . . . . Impact 287 | . . . . . . . 190 . . . 97 . . . . . . Slashing 201 | . . . . . . . . . . . . . . . . . 201 Piercing . | . . . . . . . . . . . . . . . . . . Entropic 490 | . . . . . . . . . . . . . . . . 490 . Highest Corruption 1 | . . . . . . . . . . . 1 . . . . . . Average Corruption 1 | . . . . . . . . . . . 1 . . . . . . Corruption Purged 1 | . . . . . . . . . . . 1 . . . . . . Corruption Blocked . | . . . . . . . . . . . . . . . . . . Effects 2 | . . . . . . . . . . . 2 . . . . . . Misfires 1 | . . . . . . . . . . . 1 . . . . . . Alerts 1 | . . . . . . . . . . . 1 . . . . . . Overload Shots . | . . . . . . . . . . . . . . . . . . Overflow Damage 430 | . . . . . . . 165 . . . 69 . 76 . . 89 31 Projectiles . | . . . . . . . . . . . . . . . . . . Explosions 230 | . . . . . . . . . . . 34 . 76 . . 89 31 Melee 200 | . . . . . . . 165 . . . 35 . . . . . . Knockbacks 2 | . . . . . . . . . . . 2 . . . . . . Impact 2 | . . . . . . . . . . . 2 . . . . . . Kinetic . | . . . . . . . . . . . . . . . . . . Secondary . | . . . . . . . . . . . . . . . . . . Self-Inflicted Damage 227 | . . . . . . . . . . . 92 . . . . 135 . Shots 4 | . . . . . . . . . . . 3 . . . . 1 . Rammed . | . . . . . . . . . . . . . . . . . . Targets Rammed . | . . . . . . . . . . . . . . . . . . Kicked . | . . . . . . . . . . . . . . . . . . Crushed . | . . . . . . . . . . . . . . . . . . Highest Temperature 120 | 80 90 120 24 . . . 4 1 . 12 65 6 32 1 1 1 15 Average Temperature 16 | 48 41 61 12 . . . 4 1 . 12 17 1 3 1 1 1 15 Received Heat Transfer 319 | . . 27 54 . . . 9 9 . 54 45 . . . . 9 112 Siege Activations . | . . . . . . . . . . . . . . . . . . Robots Corrupted . | . . . . . . . . . . . . . . . . . . Combat Hostiles . | . . . . . . . . . . . . . . . . . . Parts Fried 5 | . . . . . . . 4 . . . 1 . . . . . . Impact Corruptions 4 | . . . . . . . 2 . . . 2 . . . . . . Robots Melted . | . . . . . . . . . . . . . . . . . . Combat Hostiles . | . . . . . . . . . . . . . . . . . . Parts Melted . | . . . . . . . . . . . . . . . . . . Heat Transferred 666 | 111 259 296 . . . . . . . . . . . . . . . Parts Sabotaged . | . . . . . . . . . . . . . . . . . . Parts Stolen 1 | . . . . . . . . . . . . . . 1 . . . Parts Stripped . | . . . . . . . . . . . . . . . . . . Power Chain Reactions . | . . . . . . . . . . . . . . . . . . Missiles Intercepted . | . . . . . . . . . . . . . . . . . . Alert | -11 -10 -10 -9 -9 -9 -8 -8 -7 -6 -6 -5 -4 -4 -4 -4 -3 -3 ------- Run | Scr Mat Min Mat Min Exi Min Mat Fac Fac Ext Fac Fac Upp Upp War Pro Res Peak Influence 351 | 5 60 113 206 127 . . 102 96 131 120 351 197 . . . . 324 Initial 171 | . 3 23 43 79 . . . 46 46 63 39 171 . . . . 111 Average 97 | . 43 93 91 96 . . 56 58 83 82 155 183 . . . . 207 Maximum Alert Level 1 | . . . 1 . . . . . . . 1 . . . . . 1 Low Security (%) 89 | 100 100 100 93 100 . 100 100 100 100 100 66 100 . . . . 63 Level 1 10 | . . . 6 . . . . . . . 33 . . . . . 36 Level 2 . | . . . . . . . . . . . . . . . . . . Level 3 . | . . . . . . . . . . . . . . . . . . Level 4 . | . . . . . . . . . . . . . . . . . . Level 5 . | . . . . . . . . . . . . . . . . . . High Security . | . . . . . . . . . . . . . . . . . . Max Security . | . . . . . . . . . . . . . . . . . . Squads Dispatched 19 | . . . 1 . . . 4 2 3 . 5 . . . . 1 3 Investigation 9 | . . . . . . . 1 . 3 . 4 . . . . . 1 Extermination 2 | . . . . . . . . 1 . . 1 . . . . . . Reinforcement 5 | . . . 1 . . . 3 1 . . . . . . . . . Assault 1 | . . . . . . . . . . . . . . . . 1 . Garrison 2 | . . . . . . . . . . . . . . . . . 2 Intercept . | . . . . . . . . . . . . . . . . . . Searches Triggered . | . . . . . . . . . . . . . . . . . . Construction Impeded . | . . . . . . . . . . . . . . . . . . Haulers Reinforced . | . . . . . . . . . . . . . . . . . . Active Scanning Responses . | . . . . . . . . . . . . . . . . . . Cargo Convoy Interrupts . | . . . . . . . . . . . . . . . . . . Stealth | -11 -10 -10 -9 -9 -9 -8 -8 -7 -6 -6 -5 -4 -4 -4 -4 -3 -3 --------- Run | Scr Mat Min Mat Min Exi Min Mat Fac Fac Ext Fac Fac Upp Upp War Pro Res Distress Signals 5 | . . . . . . . 2 . . 2 . . . . . . 1 Communications Jammed . | . . . . . . . . . . . . . . . . . . Distress Signals . | . . . . . . . . . . . . . . . . . . Times Spotted 117 | . 3 7 9 2 . . 12 7 1 8 28 1 4 3 12 14 6 Peak Tracking Total 15 | . 3 3 5 3 . . 7 7 1 9 6 1 4 3 12 15 7 Tactical Retreats 17 | . . . 3 2 . . 1 1 . . 5 . . . 2 3 . Traps | -11 -10 -10 -9 -9 -9 -8 -8 -7 -6 -6 -5 -4 -4 -4 -4 -3 -3 ------- Run | Scr Mat Min Mat Min Exi Min Mat Fac Fac Ext Fac Fac Upp Upp War Pro Res Traps Triggered 3 | . . . . . . . . . 2 1 . . . . . . . Indirectly . | . . . . . . . . . . . . . . . . . . Trap Hack Attempts . | . . . . . . . . . . . . . . . . . . Triggered . | . . . . . . . . . . . . . . . . . . Disarmed . | . . . . . . . . . . . . . . . . . . Reprogrammed . | . . . . . . . . . . . . . . . . . . Reused . | . . . . . . . . . . . . . . . . . . Traps Extracted . | . . . . . . . . . . . . . . . . . . Installed . | . . . . . . . . . . . . . . . . . . Triggered 6 | . . . . . . . . . . . . . . . 6 . . Machines | -11 -10 -10 -9 -9 -9 -8 -8 -7 -6 -6 -5 -4 -4 -4 -4 -3 -3 ---------- Run | Scr Mat Min Mat Min Exi Min Mat Fac Fac Ext Fac Fac Upp Upp War Pro Res Machines Disabled 3 | . . . . . . . . . . . 3 . . . . . . Max in Single Turn 3 | . . . . . . . . . . . 3 . . . . . . Garrison Access 1 | . . . . . . . . . . . 1 . . . . . . Machines Sabotaged . | . . . . . . . . . . . . . . . . . . Garrisons Compromised . | . . . . . . . . . . . . . . . . . . Overloaded Fab Kills . | . . . . . . . . . . . . . . . . . . Hacking | -11 -10 -10 -9 -9 -9 -8 -8 -7 -6 -6 -5 -4 -4 -4 -4 -3 -3 --------- Run | Scr Mat Min Mat Min Exi Min Mat Fac Fac Ext Fac Fac Upp Upp War Pro Res Machines Accessed 49 | . . . 5 . 4 . 4 5 10 5 9 1 . . 5 . 1 Terminals 23 | . . . 4 . . . 2 4 9 3 . 1 . . . . . Fabricators 4 | . . . . . . . . . . . 3 . . . . . 1 Repair Stations 4 | . . . 1 . . . 1 . 1 . 1 . . . . . . Recycling Units 5 | . . . . . . . 1 . . 2 2 . . . . . . Scanalyzers 2 | . . . . . . . . . . . 2 . . . . . . Garrison Access 2 | . . . . . . . . 1 . . 1 . . . . . . Total Hacks 101 | . . . 19 . 4 . 8 8 18 12 20 1 . . 9 . 2 Successful 60 | . . . 7 . 4 . 3 1 8 8 18 . . . 9 . 2 Failed 40 | . . . 11 . . . 5 7 10 4 2 1 . . . . . Catastrophic 13 | . . . 4 . . . 1 3 4 . . 1 . . . . . Database Lockouts 1 | . . . 1 . . . . . . . . . . . . . . Manual 33 | . . . 16 . 1 . 1 5 9 . . 1 . . . . . Terminals 47 | . . . 15 . . . 4 6 15 6 . 1 . . . . . Fabricators 8 | . . . . . . . . . . . 6 . . . . . 2 Repair Stations 10 | . . . 4 . . . 1 . 3 . 2 . . . . . . Recycling Units 12 | . . . . . . . 3 . . 6 3 . . . . . . Scanalyzers 7 | . . . . . . . . . . . 7 . . . . . . Garrison Access 4 | . . . . . . . . 2 . . 2 . . . . . . Terminal Hacks 27 | . . . 5 . 4 . . 1 5 3 . . . . 9 . . Record 11 | . . . . . 3 . . . . 1 . . . . 7 . . Robot Analysis 1 | . . . 1 . . . . . . . . . . . . . . Prototype ID Bank 2 | . . . 1 . . . . 1 . . . . . . . . . Open Door 3 | . . . . . . . . . . 1 . . . . 2 . . Open DSF 1 | . . . . . . . . . 1 . . . . . . . . Branch Access Points 3 | . . . 1 . . . . . 1 1 . . . . . . . Garrison Index 1 | . . . . . . . . . 1 . . . . . . . . Unreport Threat 1 | . . . 1 . . . . . . . . . . . . . . Security Status 1 | . . . 1 . . . . . . . . . . . . . . Recall Reinforcements 1 | . . . . . . . . . 1 . . . . . . . . Registered Prototypes 1 | . . . . . . . . . 1 . . . . . . . . EX-Prototype ID Bank 1 | . . . . . 1 . . . . . . . . . . . . Fabricator Hacks 8 | . . . . . . . . . . . 6 . . . . . 2 Load Schematic 4 | . . . . . . . . . . . 3 . . . . . 1 Build 4 | . . . . . . . . . . . 3 . . . . . 1 Repair Station Hacks 5 | . . . 1 . . . . . 3 . 1 . . . . . . Scan Component 3 | . . . 1 . . . . . 1 . 1 . . . . . . Repair 1 | . . . . . . . . . 1 . . . . . . . . Refit 1 | . . . . . . . . . 1 . . . . . . . . Recycling Unit Hacks 10 | . . . . . . . 2 . . 5 3 . . . . . . Process 1 | . . . . . . . . . . 1 . . . . . . . Report Inventory 5 | . . . . . . . 1 . . 2 2 . . . . . . Retrieve Matter 2 | . . . . . . . 1 . . 1 . . . . . . . Retrieve Components 2 | . . . . . . . . . . 1 1 . . . . . . Scanalyzer 7 | . . . . . . . . . . . 7 . . . . . . Insert Component 3 | . . . . . . . . . . . 3 . . . . . . Analyze 4 | . . . . . . . . . . . 4 . . . . . . Garrison Access Hacks 1 | . . . . . . . . . . . 1 . . . . . . Seal Access 1 | . . . . . . . . . . . 1 . . . . . . Unauthorized Hacks 2 | . . . 1 . . . 1 . . . . . . . . . . Terminals . | . . . . . . . . . . . . . . . . . . Fabricators . | . . . . . . . . . . . . . . . . . . Repair Stations 2 | . . . 1 . . . 1 . . . . . . . . . . Mechanics 2 | . . . 1 . . . 1 . . . . . . . . . . Recycling Units . | . . . . . . . . . . . . . . . . . . Scanalyzers . | . . . . . . . . . . . . . . . . . . Garrison Access . | . . . . . . . . . . . . . . . . . . Data Cores Recovered . | . . . . . . . . . . . . . . . . . . Used . | . . . . . . . . . . . . . . . . . . Hacking Detections 33 | . . . 5 . . . 3 5 8 4 6 1 . . . . 1 Full Trace Events 9 | . . . . . . . 1 . 3 . 4 . . . . . 1 Feedback Events 1 | . . . . . . . . . 1 . . . . . . . . Hackware Fried 1 | . . . . . . . . . 1 . . . . . . . . Feedback Blocked . | . . . . . . . . . . . . . . . . . . Robot Schematics Acquired . | . . . . . . . . . . . . . . . . . . Robots Built . | . . . . . . . . . . . . . . . . . . Authchips . | . . . . . . . . . . . . . . . . . . Time . | . . . . . . . . . . . . . . . . . . Total Robot Build Rating . | . . . . . . . . . . . . . . . . . . Part Schematics Acquired 2 | . . . . . . . . . . . 2 . . . . . . Parts Built 7 | . . . . . . . . . . . 5 . . . . . 2 Authchips . | . . . . . . . . . . . . . . . . . . Time 181 | . . . . . . . . . . . 146 . . . . . 35 Total Part Build Rating 39 | . . . . . . . . . . . 27 . . . . . 12 Parts Repaired 1 | . . . . . . . . . 1 . . . . . . . . Time 19 | . . . . . . . . . 19 . . . . . . . . Parts Recycled . | . . . . . . . . . . . . . . . . . . Recycled Matter 10 | . . . . . . . . . . 10 . . . . . . . Retrieved Matter 10 | . . . . . . . . . . 10 . . . . . . . Retrieved Components 5 | . . . . . . . . . . 2 3 . . . . . . Parts Scanalyzed 2 | . . . . . . . . . . . 2 . . . . . . Part Schematics Acquired 2 | . . . . . . . . . . . 2 . . . . . . Parts Damaged 1 | . . . . . . . . . . . 1 . . . . . . Bothacking | -11 -10 -10 -9 -9 -9 -8 -8 -7 -6 -6 -5 -4 -4 -4 -4 -3 -3 ------------ Run | Scr Mat Min Mat Min Exi Min Mat Fac Fac Ext Fac Fac Upp Upp War Pro Res Used RIF Installer . | . . . . . . . . . . . . . . . . . . Robots Hacked . | . . . . . . . . . . . . . . . . . . Non-combat . | . . . . . . . . . . . . . . . . . . Combat . | . . . . . . . . . . . . . . . . . . Robot Hacks Applied . | . . . . . . . . . . . . . . . . . . Relay Couplers Released . | . . . . . . . . . . . . . . . . . . Fabnet Peak Effective % . | . . . . . . . . . . . . . . . . . . Robots Rewired . | . . . . . . . . . . . . . . . . . . Allies Hacked . | . . . . . . . . . . . . . . . . . . Hacks Repelled . | . . . . . . . . . . . . . . . . . . Allies | -11 -10 -10 -9 -9 -9 -8 -8 -7 -6 -6 -5 -4 -4 -4 -4 -3 -3 -------- Run | Scr Mat Min Mat Min Exi Min Mat Fac Fac Ext Fac Fac Upp Upp War Pro Res Total Allies 2 | . . . . 2 . . . . . . . . . . . . . Largest Group 2 | . . . . 2 1 . . . . . . . . . . . . Highest-Rated Group 42 | . . . . 42 31 . . . . . . . . . . . . Highest-Rated Ally 31 | . . . . 31 31 . . . . . . . . . . . . Total Orders . | . . . . . . . . . . . . . . . . . . Ally Attacks . | . . . . . . . . . . . . . . . . . . Total Damage . | . . . . . . . . . . . . . . . . . . Kills . | . . . . . . . . . . . . . . . . . . Allies Corrupted . | . . . . . . . . . . . . . . . . . . Allies Melted . | . . . . . . . . . . . . . . . . . . Intel | -11 -10 -10 -9 -9 -9 -8 -8 -7 -6 -6 -5 -4 -4 -4 -4 -3 -3 ------- Run | Scr Mat Min Mat Min Exi Min Mat Fac Fac Ext Fac Fac Upp Upp War Pro Res Robot Analysis Total 1 | . . . 1 . . . . . . . . . . . . . . Derelict Logs Recovered 4 | . . 2 . . . . . . . . . . 1 1 . . . Drone Launches . | . . . . . . . . . . . . . . . . . . Drone Recoveries . | . . . . . . . . . . . . . . . . . . Exploration | -11 -10 -10 -9 -9 -9 -8 -8 -7 -6 -6 -5 -4 -4 -4 -4 -3 -3 ------------- Run | Scr Mat Min Mat Min Exi Min Mat Fac Fac Ext Fac Fac Upp Upp War Pro Res Turns Passed 3403 | 90 149 247 140 158 129 43 272 295 202 150 729 61 204 61 355 74 44 Spaces Moved 7268 | 69 101 215 342 385 374 166 430 488 595 362 1701 175 479 200 980 170 36 Core 9 | 9 . . . . . . . . . . . . . . . . . Treads . | . . . . . . . . . . . . . . . . . . Legs . | . . . . . . . . . . . . . . . . . . Wheels 376 | 60 101 215 . . . . . . . . . . . . . . . Hover . | . . . . . . . . . . . . . . . . . . Flight 6883 | . . . 342 385 374 166 430 488 595 362 1701 175 479 200 980 170 36 Fastest Speed 26 | 50 90 90 26 26 26 26 26 26 26 26 26 29 29 29 29 29 32 Average Speed 31 | 84 90 98 26 26 26 26 26 29 26 26 28 29 29 29 29 31 40 Slowest Speed 187 | 90 90 100 26 26 26 26 26 102 26 30 30 29 29 29 29 106 187 Overloaded Moves . | . . . . . . . . . . . . . . . . . . Propulsion Burnouts . | . . . . . . . . . . . . . . . . . . Robots Hopped 26 | . . . 2 3 . 1 3 1 5 2 8 1 . . . . . Cave-ins Triggered . | . . . . . . . . . . . . . . . . . . Exploration Rate (%) 39 | 4 22 52 42 68 73 40 48 16 21 44 34 3 56 47 94 45 2 Regions Visited 17 Branch Regions 9 Pre-discovered Areas 6 | . . 2 . 1 1 . . . . . . . . . 2 . . Known Exits Taken 14 | . 1 1 1 1 1 1 . . 1 1 1 1 1 1 1 1 . Unknown Exits Taken 3 | 1 . . . . . . 1 1 . . . . . . . . . Scrap Searched 5 | . . 1 . 2 . . . . . . . . 2 . . . . Spaces Dug 34 | . . . 1 1 . . 10 2 2 . 9 . 8 1 . . . Terrain Destroyed 235 | . . . 1 1 . . 10 2 2 . 33 1 71 1 . 44 69 Melee 34 | . . . 1 1 . . 10 2 2 . 9 . 8 1 . . . Projectile 8 | . . . . . . . . . . . . 1 4 . . . 3 AOE 193 | . . . . . . . . . . . 24 . 59 . . 44 66 Terrain Rammed . | . . . . . . . . . . . . . . . . . . Walls Destroyed . | . . . . . . . . . . . . . . . . . . Machines Disabled . | . . . . . . . . . . . . . . . . . . Actions | -11 -10 -10 -9 -9 -9 -8 -8 -7 -6 -6 -5 -4 -4 -4 -4 -3 -3 --------- Run | Scr Mat Min Mat Min Exi Min Mat Fac Fac Ext Fac Fac Upp Upp War Pro Res Total 8218 | 92 142 230 382 434 407 164 568 639 631 415 1912 181 520 200 1053 191 57 Wait 639 | . 14 3 1 49 23 . 120 123 27 34 153 4 23 . 42 13 10 Move 7198 | 68 100 214 337 378 373 163 423 484 584 357 1684 172 478 199 979 169 36 Hop 26 | . . . 2 3 . 1 3 1 5 2 8 1 . . . . . Pick Up 70 | 12 9 . 11 . 3 . 3 8 5 1 8 1 . . 8 1 . Fast Attach 35 | 3 . 1 2 . . . 2 4 5 . 11 . . . 7 . . Attach 29 | 4 . . 2 . 1 . 1 4 . 2 7 1 . . 3 2 2 Detach 10 | . . . . . . . . 2 . . 5 . . . 1 2 . Swap 24 | . 3 . 11 1 1 . 1 . 1 . 4 . 2 . . . . Drop 67 | 1 6 1 11 . 6 . 3 10 2 1 9 . . . 13 3 1 Fire 57 | 4 10 11 3 . . . . . . . 10 1 9 . . 1 8 Melee 44 | . . . 2 3 . . 12 2 2 . 13 1 8 1 . . . Ram . | . . . . . . . . . . . . . . . . . . Kick . | . . . . . . . . . . . . . . . . . . Crush . | . . . . . . . . . . . . . . . . . . Escape Stasis 19 | . . . . . . . . 1 . 18 . . . . . . . Rewire . | . . . . . . . . . . . . . . . . . . Trap . | . . . . . . . . . . . . . . . . . . Miscellaneous . | . . . . . . . . . . . . . . . . . . Route ------- -11/Scrapyard -10/Materials -10/Mines -9/Materials (discovered 2 exits: *Mat / *Min) -9/Mines (discovered 2 exits: *Mat / *Exi) -9/Exiles (discovered 2 exits: *Min x2) -8/Mines -8/Materials -7/Factory (discovered 2 exits: *Fac / [*Low]) -6/Factory (discovered 5 exits: *Fac / Low x2 / *Ext x2) -6/Extension (discovered 2 exits: *Fac / Cet) -5/Factory -4/Factory -4/Upper Caves -4/Upper Caves -4/Warlord -3/Proximity Caves -3/Research History --------- Turn | Location | Event 19 | -11/Scrapyard | Discovered new exit (range 15) 91 | -11/Scrapyard | Entered Materials 208 | -10/Materials | Discovered new exit (range 7) 219 | -10/Materials | Identified exit to Mines 240 | -10/Materials | Entered Mines 246 | -10/Mines | Joined a pair of Derelicts in attacking an 0b10 outpost 318 | -10/Mines | Build established: Mutant 345 | -10/Mines | Learned location of Zion (-6) 402 | -10/Mines | Discovered new exit (range 8) 425 | -10/Mines | Identified exit to Materials 487 | -10/Mines | Entered Materials 487 | -9/Materials | Evolved 2 slots: Propulsion x2 501 | -9/Materials | Identified exit to Mines 502 | -9/Materials | Central database locked down 567 | -9/Materials | Discovered new exit (range 8) 627 | -9/Materials | Entered Mines 641 | -9/Mines | Discovered new exit (range 14) 643 | -9/Mines | Identified exit to Materials 697 | -9/Mines | Learned location of Storage (-8) 700 | -9/Mines | Discovered new exit (range 3) 703 | -9/Mines | Identified exit to Exiles 780 | -9/Mines | Build established: Sprinter 785 | -9/Mines | Entered Exiles 785 | -9/Exiles | Accompanied by 1 ally 800 | -9/Exiles | Discovered new exit (range 15) 812 | -9/Exiles | Met 8R-AWN 815 | -9/Exiles | Led the pair of lost Derelicts to a safe place 820 | -9/Exiles | Met EX-HEX 830 | -9/Exiles | Met EX-DEC 862 | -9/Exiles | Met EX-BIN 865 | -9/Exiles | Aligned with FarCom system 865 | -9/Exiles | Given EX-Vault access code 872 | -9/Exiles | Opened EX-Vault 879 | -9/Exiles | Found Flying Fortress v7 881 | -9/Exiles | Found 0b10 Alert Chip 883 | -9/Exiles | Found Chronowheel 894 | -9/Exiles | Warned to stay clear of 0b10 Research branches 911 | -9/Exiles | Discovered new exit (range 14) 914 | -9/Exiles | Identified exit to Mines 914 | -9/Exiles | Stole three prototypes: Flying Fortress v7, 0b10 Alert Chip, Chronowheel 914 | -9/Exiles | Entered Mines 933 | -8/Mines | Discovered exit to Materials (range 15) 957 | -8/Mines | Entered Materials 957 | -8/Materials | Evolved 2 slots: Utility x2 1225 | -8/Materials | Discovered new exit (range 16) 1229 | -8/Materials | Entered Factory 1229 | -7/Factory | Evolved 2 slots: Utility x2 1231 | -7/Factory | FarCom data flow suspended 1413 | -7/Factory | Discovered new exit (range 5) 1520 | -7/Factory | Discovered new exit (range 14) 1524 | -7/Factory | Entered another Factory area 1524 | -6/Factory | Evolved 2 slots: Utility x2 1538 | -6/Factory | Identified exit to Lower Caves 1538 | -6/Factory | Identified exit to Extension 1551 | -6/Factory | Identified exit to DSF 1603 | -6/Factory | Discovered new exit (range 19) 1616 | -6/Factory | Identified exit to Factory 1676 | -6/Factory | Repaired Lgt. Deuterium Engine 1695 | -6/Factory | Hacking Suite fried by hacking feedback 1726 | -6/Factory | Entered Extension 1810 | -6/Extension | Identified exit to Cetus 1837 | -6/Extension | Build established: Hacker-Scout 1866 | -6/Extension | Spotted B-75 Beast 1868 | -6/Extension | Spotted B-75 Beast 1875 | -6/Extension | Discovered exit to Factory (range 3) 1876 | -6/Extension | Entered Factory 1876 | -5/Factory | Evolved 2 slots: Power x1, Propulsion x1 1905 | -5/Factory | Lost 4 parts (1p2n1u) 2010 | -5/Factory | Fabricated Imp. VTOL Module? 2199 | -5/Factory | Build established: Hacker-Sprinter 2237 | -5/Factory | Fabricated Field Propulsion Drive (x2) 2401 | -5/Factory | Fabricated Field Propulsion Drive (x2) 2412 | -5/Factory | Lost 3 parts (1p1n1u) 2569 | -5/Factory | Discovered new exit (range 16) 2605 | -5/Factory | Identified exit to Factory 2605 | -5/Factory | Entered another Factory area 2605 | -4/Factory | Evolved 2 slots: Utility x2 2621 | -4/Factory | Discovered new exit (range 12) 2624 | -4/Factory | Identified exit to Upper Caves 2666 | -4/Factory | Entered Upper Caves 2776 | -4/Upper Caves | Build established: Hacker-Scout 2868 | -4/Upper Caves | Discovered new exit (range 7) 2869 | -4/Upper Caves | Learned 4 Research zone layouts 2870 | -4/Upper Caves | Identified exit to Upper Caves 2870 | -4/Upper Caves | Entered another Upper Caves area 2870 | -4/Upper Caves | Spotted BY-EFI(f) 2870 | -4/Upper Caves | Spotted 1D-6IC(f) 2871 | -4/Upper Caves | Encountered a Master Thief 2871 | -4/Upper Caves | Encountered a Master Thief 2888 | -4/Upper Caves | Spotted 8X-1EF(f) 2889 | -4/Upper Caves | Encountered a Master Thief 2901 | -4/Upper Caves | Learned Research terminal intel 2928 | -4/Upper Caves | Discovered new exit (range 9) 2930 | -4/Upper Caves | Identified exit to Warlord 2931 | -4/Upper Caves | Entered Warlord 2956 | -4/Warlord | Found Prototype Device 2957 | -4/Warlord | Identified Minesniffer Drone Bay 2989 | -4/Warlord | Learned location of Command (-1) 2989 | -4/Warlord | Learned Testing emergency access door positions 2989 | -4/Warlord | Learned Testing stockpile data 2993 | -4/Warlord | Learned Testing security intel 3024 | -4/Warlord | Met Warlord 3049 | -4/Warlord | Warlord's base attacked by MAIN.C 3079 | -4/Warlord | Found Prototype Launcher 3081 | -4/Warlord | Identified Vortex Catalyst Activator 3083 | -4/Warlord | Found Prototype Energy Gun 3084 | -4/Warlord | Identified Vortex Shotgun 3087 | -4/Warlord | Found Prototype Energy Gun 3087 | -4/Warlord | Identified Vortex Rail 3095 | -4/Warlord | Found Vortex Rail 3134 | -4/Warlord | Found Prototype Special Weapon 3134 | -4/Warlord | Identified RU-N14's Throwing Claymores v3 3136 | -4/Warlord | Found RU-N14's Throwing Claymores v3 3138 | -4/Warlord | Found RU-N14's Throwing Claymores v3 3243 | -4/Warlord | Discovered new exit (range 9) 3252 | -4/Warlord | Warlord forces counterattacked 3278 | -4/Warlord | Opened side exit 3286 | -4/Warlord | Identified exit to Proximity Caves 3286 | -4/Warlord | Entered Proximity Caves 3288 | -3/Proximity Caves | Attracted the attention of an 0b10 outpost 3345 | -3/Proximity Caves | Discovered new exit (range 5) 3346 | -3/Proximity Caves | Identified exit to Research 3359 | -3/Proximity Caves | Lost 3 parts (1p1n1u) 3360 | -3/Proximity Caves | Entered Research 3360 | -3/Research | Evolved 2 slots: Propulsion x1, Utility x1 3362 | -3/Research | Loaded intel: 20 terminal locations 3404 | -3/Research | Fabricated Field Propulsion Drive (x2) 3404 | -3/Research | Self-destructed Last Messages --------------- ETC: 35 03369_ ALERT: Unauthorized use of fabrication network. Dispatching investigation squad. 03372_ W-44 Eye sends out distress signal. 03372_ ALERT: All DSF locations entering lockdown mode. 03377_ The unstable cave ceiling collapses. 03379_ Critical hit (Burn: +50). 03380_ Imp. VTOL Module destroyed. 03388_ G-67 Veteran Flexi-carbon Leg severed. 03388_ G-67 Veteran destroyed. 03389_ Imp. VTOL Module destroyed. 03390_ Destroyed Lgt. Antimatter Reactor. 03390_ G-67 Veteran destroyed. 03393_ Slug penetrates Wall. 03394_ Y-72 Warden destroyed. 03396_ Dropped RU-N14's Throwing Claymores v3. 03398_ The unstable cave ceiling collapses. 03401_ Y-72 Warden emerges from the garrison. 03403_ The unstable cave ceiling collapses. 03404_ Fabricator completes Field Propulsion Drive. Map ----- +----------------------------------------------------+ | ?????????????????????????????????????????????????? | | ?????????????????????????????????????????????????? | | ?????????????????????????????????????????????????? | | ?????????????????????????????????????????????????? | | ?????????????????????????????????????????????????? | | ?????????????????????????????????????????????????? | | ?????????????????????????????????????????????????? | | ?????????????????????????????????????????????????? | | ?????????????????????????????????????????????????? | | ?????????????????????????????????????????????????? | | ?????????????????????????????????????????????????? | | ?????????????????????????????????????????????????? | | ?????????????????????????????????????????????????? | | ?????????????????????????????????????????????????? | | ?????????????????????????????????????????????????? | | ?????????????????????????????????????????????????? | | ?????????????????????????????????????????????????? | | ?????????????????????????????????????????????????? | | ?????????????????????????????????????????????????? | | ?????????????????????????????????????????????????? | | ?????????????????????????????????????????????????? | | ??????????????????????????????????????????? ??? | | ?????????????????#######################" # ?? | | ?????????????????# # ? | | ?????????????????# ! # ? | | ?????????????????# @ # ? | | ?????????????????# "" "" = ? | | ?????????????????# ""S"" ####??????????? | | ?????????????????# """" # # #????????????? | | ?????????????????# # ?????????? | | ?????????????????# # # #??????? | | ?????????????????## ="""### ""G"" #??????? | | ??????????????????#""=F""#?# " " #??????? | | ??????????????????#""""""#?# Y ?????????? | | ??????????????????# """" #?# ?????????? | | ??????????????????########?# ????????? | | ????????????????????????#### ???????? | | ????????????????????????# ## # # ??????? | | ????????????????????????# #?### # #?????? | | ????????????????????????# #????? # #?????? | | ????????????????????????# #?????? #?????? | | ????????????????????????####+#####?????? #??????? | | ????????????????????????# #???????#???????? | | ????????????????????????# [ #???????????????? | | ????????????????????????# #???????????????? | | ????????????????????????# ! #???????????????? | | ????????????????????????# #???????????????? | | ????????????????????????# #???????????????? | | ????????????????????????# !!! #???????????????? | | ????????????????????????# !!! #???????????????? | +----------------------------------------------------+ Best States ------------- Heat Dissipation 46 Energy Generation 31 Energy Capacity 250 Matter Stores 300 Matter Capacity 300 Sight Range 22 Robot Scan Range 16 Terrain Scan Density 10 Additional Mass Support 9 Evasion (%) 74 Offensive Hacking 59 Authchip Count 1 Item Schematics ----------------- Imp. VTOL Module | -5/Factory | Scanalyzed Field Propulsion Drive | -5/Factory | Scanalyzed Robot Schematics ------------------ None Fabricated ------------ Imp. VTOL Module | x1 | -5/Factory Field Propulsion Drive | x2 | -5/Factory Field Propulsion Drive | x2 | -5/Factory Field Propulsion Drive | x2 | -3/Research Alien Tech Used ----------------- None Achievements -------------- Charge!!! Party Time Challenges ------------ None Game ------ Seed MiniBurstTrap Manual? 0 Play Time 02:41:19 Cumulative 27.5 hours Start 2022.04.25 @ 11:53:17 End 2022.04.25 @ 16:28:55 Sessions 1 Manual Loads 0 Difficulty Rogue Special Mode None Game No. 12 Rogue 12 Adventurer 0 Explorer 0 Win Type - Total 0 Types 0/0/0/0/0/0/0/0/0 Lore% 30 Gallery% 27 Achievement% 27 Wizard Run 0 Options --------- ASCII 0 Keyboard 0 Movement Mouse Keybinds 0 Fullscreen 2 Font 18/TerminusBold Map View 76x50 Tactical HUD 1 Map Filters NONE Filters NONE Steam 1 RUN: 764ef6fb-9842-4f6a-a7c8-e52754c15972